[Event "NJSK 2021 Meisjes A&B"]
[Site "Almelo, Netherlands"]
[Date "2021.08.07"]
[Round "7.4"]
[White "Zubair, Javeria Komal"]
[Black "Van Essen, Marieke"]
[Result "0-1"]
[TimeControl "90min/40moves + 30sec/move"]
[WhiteElo "1490"]
[BlackElo "1610"]

1. Nf3 {[%clk 01:30:59]} d5 {[%clk 01:30:57]} {[%emt 00:00:05]} 2. c4 {[%clk
01:31:25]} {[%emt 00:00:03]} Nf6 {[%clk 01:31:19]} {[%emt 00:00:08]} 3. e3
{[%clk 01:31:44]} {[%emt 00:00:11]} Nc6 {[%clk 01:31:34]} {[%emt 00:00:15]} 4.
Nc3 {[%clk 01:31:57]} {[%emt 00:00:17]} e5 {[%clk 01:31:52]} {[%emt 00:00:12]}
5. d4 {[%clk 01:30:34]} {[%emt 00:01:53]} Bg4 {[%clk 01:30:46]} {[%emt
00:01:36]} 6. Be2 {[%clk 01:30:22]} {[%emt 00:00:42]} Bb4 {[%clk 01:26:39]}
{[%emt 00:04:37]} 7. a3 {[%clk 01:08:07]} {[%emt 00:22:44]} exd4 {[%clk
01:22:18]} {[%emt 00:04:52]} 8. Nxd4 {[%clk 01:02:57]} {[%emt 00:05:40]} Bxe2
{[%clk 01:20:13]} {[%emt 00:02:35]} 9. Qxe2 {[%clk 01:03:07]} {[%emt 00:00:20]}
Bxc3+ {[%clk 01:19:13]} {[%emt 00:01:29]} 10. bxc3 {[%clk 01:03:15]} {[%emt
00:00:23]} Qd7 {[%clk 01:18:33]} {[%emt 00:01:10]} 11. O-O {[%clk 01:02:13]}
{[%emt 00:01:32]} O-O {[%clk 01:18:10]} {[%emt 00:00:52]} 12. Rb1 {[%clk
01:02:19]} {[%emt 00:00:24]} b6 {[%clk 01:15:20]} {[%emt 00:03:20]} 13. Rd1
{[%clk 00:58:28]} {[%emt 00:04:21]} Rad8 {[%clk 01:11:58]} {[%emt 00:03:52]} 14.
Bb2 {[%clk 00:58:42]} {[%emt 00:00:17]} dxc4 {[%clk 01:09:05]} {[%emt
00:03:23]} 15. Qxc4 {[%clk 00:57:12]} {[%emt 00:02:00]} Ne5 {[%clk 01:07:27]}
{[%emt 00:02:08]} 16. Qe2 {[%clk 00:55:26]} {[%emt 00:02:15]} c5 {[%clk
01:04:28]} {[%emt 00:03:29]} 17. Nb5 {[%clk 00:54:24]} {[%emt 00:01:32]} Qe7
{[%clk 00:57:23]} {[%emt 00:07:35]} 18. c4 {[%clk 00:52:05]} {[%emt 00:02:50]}
Ne4 {[%clk 00:52:11]} {[%emt 00:05:41]} 19. f3 {[%clk 00:45:01]} {[%emt
00:07:34]} a6 {[%clk 00:47:22]} {[%emt 00:05:20]} 20. Nc3 {[%clk 00:28:30]}
{[%emt 00:17:01]} Nxc3 {[%clk 00:42:04]} {[%emt 00:05:47]} 21. Bxc3 {[%clk
00:28:57]} {[%emt 00:00:03]} Rxd1+ {[%clk 00:42:04]} {[%emt 00:00:30]} 22. Rxd1
{[%clk 00:28:53]} {[%emt 00:00:35]} Rb8 {[%clk 00:41:29]} {[%emt 00:01:04]} 23.
Rd5 {[%clk 00:25:19]} {[%emt 00:04:04]} Nc6 {[%clk 00:37:50]} {[%emt 00:04:10]}
24. Qd2 {[%clk 00:23:39]} {[%emt 00:02:09]} b5 {[%clk 00:34:55]} {[%emt
00:03:26]} 25. Rd6 {[%clk 00:19:37]} {[%emt 00:04:32]} Qe8 {[%clk 00:30:11]}
{[%emt 00:05:14]} 26. Kf2 {[%clk 00:16:34]} {[%emt 00:03:32]} b4 {[%clk
00:26:35]} {[%emt 00:04:07]} 27. axb4 {[%clk 00:14:37]} {[%emt 00:02:27]} cxb4
{[%clk 00:26:20]} {[%emt 00:00:44]} 28. Bb2 {[%clk 00:13:27]} {[%emt 00:01:41]}
h6 {[%clk 00:22:57]} {[%emt 00:03:53]} 29. Qd5 {[%clk 00:10:33]} {[%emt
00:03:23]} Rc8 {[%clk 00:20:03]} {[%emt 00:03:24]} 30. Qh5 {[%clk 00:06:39]}
{[%emt 00:04:21]} Rd8 {[%clk 00:17:10]} {[%emt 00:03:27]} 31. Qg4 {[%clk
00:04:02]} {[%emt 00:03:06]} g6 {[%clk 00:14:25]} {[%emt 00:03:15]} 32. c5
{[%clk 00:04:30]} {[%emt 00:00:03]} Rxd6 {[%clk 00:11:16]} {[%emt 00:03:39]} 33.
cxd6 {[%clk 00:04:58]} {[%emt 00:00:02]} Qe6 {[%clk 00:11:14]} {[%emt
00:00:31]} 34. Qf4 {[%clk 00:03:49]} {[%emt 00:01:39]} g5 {[%clk 00:09:49]}
{[%emt 00:01:56]} 35. Qg3 {[%clk 00:02:34]} {[%emt 00:01:44]} Qa2 {[%clk
00:08:53]} {[%emt 00:01:27]} 36. h4 {[%clk 00:02:04]} {[%emt 00:00:59]} Qxb2+
{[%clk 00:08:35]} {[%emt 00:00:48]} 37. Kf1 {[%clk 00:01:57]} {[%emt 00:00:37]}
Qc1+ {[%clk 00:06:38]} {[%emt 00:02:27]} 38. Ke2 {[%clk 00:02:17]} {[%emt
00:00:08]} Qc4+ {[%clk 00:06:55]} {[%emt 00:00:15]} 39. Kd2 {[%clk 00:01:16]}
{[%emt 00:01:31]} Qxh4 {[%clk 00:05:19]} {[%emt 00:02:06]} 40. Qxh4 {[%clk
00:01:14]} {[%emt 00:00:32]} gxh4 {[%clk 00:05:44]} {[%emt 00:00:06]} 41. Kd3
{[%clk 00:01:30]} {[%emt 00:00:13]} Kf8 {[%clk 00:05:51]} {[%emt 00:00:24]} 42.
e4 {[%clk 00:01:09]} {[%emt 00:00:51]} Ke8 {[%clk 00:05:16]} {[%emt 00:01:05]}
43. f4 {[%clk 00:01:31]} {[%emt 00:00:08]} Kd7 {[%clk 00:04:53]} {[%emt
00:00:53]} 44. e5 {[%clk 00:01:54]} {[%emt 00:00:06]} a5 {[%clk 00:05:08]}
{[%emt 00:00:16]} 45. Kc4 {[%clk 00:02:10]} {[%emt 00:00:13]} a4 {[%clk
00:05:22]} {[%emt 00:00:17]} 46. Kd5 {[%clk 00:02:19]} {[%emt 00:00:21]} b3
{[%clk 00:05:16]} {[%emt 00:00:36]} 47. f5 {[%clk 00:02:44]} {[%emt 00:00:05]}
Nxe5 {[%clk 00:05:36]} {[%emt 00:00:09]} 48. Kxe5 {[%clk 00:02:59]} {[%emt
00:00:16]} b2 {[%clk 00:05:54]} {[%emt 00:00:12]} 0-1

[Event "NJSK 2021 Meisjes A&B"]
[Site "Almelo, Netherlands"]
[Date "2021.08.07"]
[Round "7.5"]
[White "Martinez, Sara"]
[Black "Basa, Manasvita"]
[Result "1-0"]
[TimeControl "90min/40moves + 30sec/move"]
[WhiteElo "1528"]
[BlackElo "1711"]

1. e4 {[%clk 01:30:59]} e5 {[%clk 01:30:55]} {[%emt 00:00:06]} 2. Nf3 {[%clk
01:31:25]} {[%emt 00:00:03]} Nc6 {[%clk 01:31:20]} {[%emt 00:00:06]} 3. d4
{[%clk 01:31:50]} {[%emt 00:00:05]} exd4 {[%clk 01:31:45]} {[%emt 00:00:05]} 4.
Nxd4 {[%clk 01:32:15]} {[%emt 00:00:05]} Bc5 {[%clk 01:32:09]} {[%emt
00:00:06]} 5. Nb3 {[%clk 01:32:35]} {[%emt 00:00:10]} Bb6 {[%clk 01:32:28]}
{[%emt 00:00:10]} 6. Nc3 {[%clk 01:32:42]} {[%emt 00:00:23]} d6 {[%clk
01:32:24]} {[%emt 00:00:34]} 7. Qe2 {[%clk 01:31:56]} {[%emt 00:01:16]} Be6
{[%clk 01:29:06]} {[%emt 00:03:48]} 8. Nd5 {[%clk 01:26:41]} {[%emt 00:05:46]}
Qd7 {[%clk 01:21:02]} {[%emt 00:08:34]} 9. h3 {[%clk 01:20:48]} {[%emt
00:06:22]} O-O-O {[%clk 01:20:50]} {[%emt 00:00:42]} 10. Nxb6+ {[%clk
01:16:25]} {[%emt 00:04:53]} axb6 {[%clk 01:21:13]} {[%emt 00:00:07]} 11. Be3
{[%clk 01:16:36]} {[%emt 00:00:19]} f5 {[%clk 01:18:48]} {[%emt 00:02:55]} 12.
exf5 {[%clk 01:04:17]} {[%emt 00:12:48]} Bxf5 {[%clk 01:19:08]} {[%emt
00:00:10]} 13. O-O-O {[%clk 01:03:39]} {[%emt 00:01:09]} Nf6 {[%clk 01:13:02]}
{[%emt 00:06:36]} 14. Qb5 {[%clk 00:57:05]} {[%emt 00:07:04]} Rhe8 {[%clk
01:03:13]} {[%emt 00:10:19]} 15. Nd4 {[%clk 00:54:26]} {[%emt 00:03:09]} Re5
{[%clk 00:54:33]} {[%emt 00:09:10]} 16. Qa4 {[%clk 00:51:17]} {[%emt 00:03:39]}
Ra5 {[%clk 00:54:30]} {[%emt 00:00:33]} 17. Qb3 {[%clk 00:50:18]} {[%emt
00:01:29]} Nxd4 {[%clk 00:47:37]} {[%emt 00:07:23]} 18. Bxd4 {[%clk 00:48:42]}
{[%emt 00:02:06]} Ne4 {[%clk 00:43:35]} {[%emt 00:04:32]} 19. Bc4 {[%clk
00:44:27]} {[%emt 00:04:46]} d5 {[%clk 00:39:52]} {[%emt 00:04:12]} 20. Bd3
{[%clk 00:43:12]} {[%emt 00:01:45]} Nc5 {[%clk 00:37:08]} {[%emt 00:03:14]} 21.
Bxc5 {[%clk 00:41:44]} {[%emt 00:01:58]} bxc5 {[%clk 00:36:55]} {[%emt
00:00:43]} 22. Kb1 {[%clk 00:36:16]} {[%emt 00:05:57]} Bxd3 {[%clk 00:29:53]}
{[%emt 00:07:32]} 23. Qxd3 {[%clk 00:36:34]} {[%emt 00:00:13]} Qa4 {[%clk
00:30:01]} {[%emt 00:00:23]} 24. a3 {[%clk 00:35:40]} {[%emt 00:01:23]} c4
{[%clk 00:30:07]} {[%emt 00:00:24]} 25. Qf5+ {[%clk 00:33:55]} {[%emt
00:02:15]} Kb8 {[%clk 00:30:27]} {[%emt 00:00:10]} 26. Rd4 {[%clk 00:29:54]}
{[%emt 00:04:31]} Qb5 {[%clk 00:27:06]} {[%emt 00:03:51]} 27. Rhd1 {[%clk
00:24:13]} {[%emt 00:06:11]} c3 {[%clk 00:18:46]} {[%emt 00:08:51]} 28. Rb4
{[%clk 00:24:29]} {[%emt 00:00:13]} Qc5 {[%clk 00:18:50]} {[%emt 00:00:25]} 29.
Qf3 {[%clk 00:21:32]} {[%emt 00:03:28]} cxb2 {[%clk 00:11:38]} {[%emt
00:07:43]} 30. Kxb2 {[%clk 00:21:43]} {[%emt 00:00:18]} Rf8 {[%clk 00:11:23]}
{[%emt 00:00:44]} 31. Qb3 {[%clk 00:19:40]} {[%emt 00:02:34]} b6 {[%clk
00:11:09]} {[%emt 00:00:44]} 32. Rbd4 {[%clk 00:17:07]} {[%emt 00:03:02]} Rb5
{[%clk 00:04:48]} {[%emt 00:06:52]} 33. Rb4 {[%clk 00:17:23]} {[%emt 00:00:14]}
Ra5 {[%clk 00:04:28]} {[%emt 00:00:49]} 34. Rbd4 {[%clk 00:15:34]} {[%emt
00:02:20]} Rb5 {[%clk 00:02:27]} {[%emt 00:02:31]} 35. Rb4 {[%clk 00:15:56]}
{[%emt 00:00:07]} Rxb4 {[%clk 00:02:51]} {[%emt 00:00:07]} 36. axb4 {[%clk
00:16:18]} {[%emt 00:00:07]} Qxf2 {[%clk 00:03:05]} {[%emt 00:00:17]} 37. Qxd5
{[%clk 00:16:38]} {[%emt 00:00:10]} Qf6+ {[%clk 00:02:37]} {[%emt 00:00:58]} 38.
Kb3 {[%clk 00:14:48]} {[%emt 00:02:21]} Qg6 {[%clk 00:01:11]} {[%emt 00:01:55]}
39. Ra1 {[%clk 00:13:21]} {[%emt 00:01:57]} c6 {[%clk 00:00:33]} {[%emt
00:01:09]} 40. Qe5+ {[%clk 00:13:06]} {[%emt 00:00:45]} 1-0

[Event "NJSK 2021 Meisjes A&B"]
[Site "Almelo, Netherlands"]
[Date "2021.08.07"]
[Round "7.6"]
[White "Maris, Evi"]
[Black "Bertholee, Arjuna"]
[Result "1-0"]
[TimeControl "90min/40moves + 30sec/move"]
[WhiteElo "1232"]
[BlackElo "1144"]

1. d4 {[%clk 01:30:57]} {[%emt 00:00:46]} d5 {[%clk 01:30:47]} 2. c4 {[%clk
01:31:20]} e6 {[%clk 01:30:19]} 3. Nc3 {[%clk 01:31:43]} Nf6 {[%clk 01:21:41]}
4. Nf3 {[%clk 01:31:23]} c6 {[%clk 01:18:03]} {[%emt 00:03:21]} 5. e3 {[%clk
01:31:18]} {[%emt 00:00:35]} Be7 {[%clk 01:09:41]} {[%emt 00:08:53]} 6. Bd3
{[%clk 01:30:31]} {[%emt 00:01:17]} b6 {[%clk 01:01:53]} {[%emt 00:08:18]} 7.
O-O {[%clk 01:29:56]} {[%emt 00:01:05]} Qc7 {[%clk 00:59:17]} {[%emt 00:03:06]}
8. e4 {[%clk 01:28:54]} {[%emt 00:01:31]} dxe4 {[%clk 00:56:33]} {[%emt
00:03:15]} 9. Nxe4 {[%clk 01:28:50]} {[%emt 00:00:33]} Nxe4 {[%clk 00:55:32]}
{[%emt 00:01:31]} 10. Bxe4 {[%clk 01:29:10]} {[%emt 00:00:09]} Bb7 {[%clk
00:50:57]} {[%emt 00:05:06]} 11. Ne5 {[%clk 01:28:34]} {[%emt 00:01:06]} Nd7
{[%clk 00:48:27]} {[%emt 00:03:00]} 12. Bf4 {[%clk 01:28:05]} {[%emt 00:00:59]}
Bd6 {[%clk 00:45:49]} {[%emt 00:03:08]} 13. Qh5 {[%clk 01:18:47]} {[%emt
00:09:48]} Nf6 {[%clk 00:38:59]} {[%emt 00:07:20]} 14. Qf3 {[%clk 01:18:41]}
{[%emt 00:00:36]} Nxe4 {[%clk 00:38:14]} {[%emt 00:01:15]} 15. Qxe4 {[%clk
01:18:46]} {[%emt 00:00:25]} O-O-O {[%clk 00:32:57]} {[%emt 00:05:47]} 16. Rac1
{[%clk 01:15:56]} {[%emt 00:03:20]} f6 {[%clk 00:30:27]} {[%emt 00:03:00]} 17.
Nd3 {[%clk 01:16:08]} {[%emt 00:00:18]} Bxf4 {[%clk 00:26:30]} {[%emt
00:04:26]} 18. Nxf4 {[%clk 01:16:21]} {[%emt 00:00:18]} Qd6 {[%clk 00:22:40]}
{[%emt 00:04:21]} 19. d5 {[%clk 01:15:37]} {[%emt 00:01:13]} exd5 {[%clk
00:18:54]} {[%emt 00:04:16]} 20. cxd5 {[%clk 01:15:53]} {[%emt 00:00:15]} c5
{[%clk 00:16:46]} {[%emt 00:02:37]} 21. b4 {[%clk 01:10:38]} {[%emt 00:05:45]}
Qe5 {[%clk 00:13:37]} {[%emt 00:03:40]} 22. Qc4 {[%clk 01:05:19]} {[%emt
00:05:49]} Bxd5 {[%clk 00:12:41]} {[%emt 00:01:25]} 23. Nxd5 {[%clk 01:05:11]}
{[%emt 00:00:37]} Qxd5 {[%clk 00:12:26]} {[%emt 00:00:46]} 24. Qa6+ {[%clk
01:05:13]} {[%emt 00:00:29]} Qb7 {[%clk 00:11:28]} {[%emt 00:01:27]} 25. Qb5
{[%clk 01:05:02]} {[%emt 00:00:41]} Qd7 {[%clk 00:10:39]} {[%emt 00:01:20]} 26.
Qe2 {[%clk 01:04:49]} {[%emt 00:00:42]} Rhe8 {[%clk 00:09:12]} {[%emt
00:01:57]} 27. Qf3 {[%clk 01:04:58]} {[%emt 00:00:21]} Qd5 {[%clk 00:07:42]}
{[%emt 00:02:00]} 28. Qg4+ {[%clk 01:04:58]} {[%emt 00:00:29]} Qd7 {[%clk
00:04:46]} {[%emt 00:03:28]} 29. Qf3 {[%clk 01:05:13]} {[%emt 00:00:14]} Qd5
{[%clk 00:04:59]} {[%emt 00:00:17]} 30. Qa3 {[%clk 01:04:50]} {[%emt 00:00:53]}
Kb7 {[%clk 00:03:31]} {[%emt 00:01:58]} 31. bxc5 {[%clk 01:05:10]} {[%emt
00:00:10]} Qd3 {[%clk 00:03:08]} {[%emt 00:00:53]} 32. c6+ {[%clk 01:04:57]}
{[%emt 00:00:43]} Ka8 {[%clk 00:02:27]} {[%emt 00:01:10]} 33. Qb2 {[%clk
01:02:22]} {[%emt 00:03:06]} Qd2 {[%clk 00:02:05]} {[%emt 00:00:52]} 34. Qb5
{[%clk 01:02:22]} {[%emt 00:00:30]} Qd3 {[%clk 00:01:53]} {[%emt 00:00:42]} 35.
Qh5 {[%clk 01:01:31]} {[%emt 00:01:20]} Qg6 {[%clk 00:01:17]} {[%emt 00:01:07]}
36. Qf3 {[%clk 01:01:39]} {[%emt 00:00:22]} Qe4 {[%clk 00:01:20]} {[%emt
00:00:27]} 37. c7 {[%clk 01:00:28]} {[%emt 00:01:42]} Rc8 {[%clk 00:01:38]}
{[%emt 00:00:11]} 38. Qg3 {[%clk 01:00:32]} {[%emt 00:00:26]} Kb7 {[%clk
00:01:28]} {[%emt 00:00:41]} 39. Qc3 {[%clk 01:00:13]} {[%emt 00:00:48]} Qf4
{[%clk 00:00:57]} {[%emt 00:01:00]} 40. Qc6+ {[%clk 01:00:26]} {[%emt
00:00:17]} Ka6 {[%clk 00:01:07]} {[%emt 00:00:21]} 41. Rc4 {[%clk 01:00:38]}
{[%emt 00:00:17]} Rxc7 {[%clk 00:26:07]} {[%emt 00:05:30]} 42. Qxc7 {[%clk
01:30:19]} {[%emt 00:00:50]} Qxc7 {[%clk 00:25:16]} {[%emt 00:01:21]} 43. Rxc7
{[%clk 01:30:43]} {[%emt 00:00:06]} Re2 {[%clk 00:25:37]} {[%emt 00:00:10]} 44.
Ra1 {[%clk 01:30:54]} {[%emt 00:00:19]} b5 {[%clk 00:25:53]} {[%emt 00:00:13]}
45. Kf1 {[%clk 01:31:09]} {[%emt 00:00:15]} Rb2 {[%clk 00:26:15]} {[%emt
00:00:08]} 46. Rcc1 {[%clk 01:31:06]} {[%emt 00:00:32]} Ka5 {[%clk 00:26:35]}
{[%emt 00:00:11]} 47. Rcb1 {[%clk 01:31:21]} {[%emt 00:00:16]} Rc2 {[%clk
00:26:51]} {[%emt 00:00:14]} 48. a3 {[%clk 01:31:35]} {[%emt 00:00:15]} Ka4
{[%clk 00:27:11]} {[%emt 00:00:10]} 49. Rb4+ {[%clk 01:31:54]} {[%emt
00:00:12]} Ka5 {[%clk 00:27:30]} {[%emt 00:00:10]} 50. Rab1 {[%clk 01:31:39]}
{[%emt 00:00:45]} a6 {[%clk 00:27:53]} {[%emt 00:00:08]} 51. h4 {[%clk
01:31:37]} {[%emt 00:00:31]} Ra2 {[%clk 00:28:10]} {[%emt 00:00:12]} 52. R1b3
{[%clk 01:31:52]} {[%emt 00:00:15]} Rxa3 {[%clk 00:27:52]} {[%emt 00:00:48]} 53.
Rxb5+ {[%clk 01:31:46]} {[%emt 00:00:37]} axb5 {[%clk 00:28:10]} {[%emt
00:00:12]} 54. Rxa3+ {[%clk 01:32:09]} {[%emt 00:00:07]} Kb4 {[%clk 00:28:34]}
{[%emt 00:00:06]} 55. Ra7 {[%clk 01:32:25]} {[%emt 00:00:14]} Kc3 {[%clk
00:28:55]} {[%emt 00:00:09]} 56. Rb7 {[%clk 01:32:43]} {[%emt 00:00:12]} b4
{[%clk 00:29:17]} {[%emt 00:00:08]} 57. Ke1 {[%clk 01:32:50]} {[%emt 00:00:23]}
b3 {[%clk 00:29:28]} {[%emt 00:00:19]} 58. Kd1 {[%clk 01:32:53]} {[%emt
00:00:27]} Kb2 {[%clk 00:29:52]} {[%emt 00:00:06]} 59. g4 {[%clk 01:32:55]}
{[%emt 00:00:28]} g5 {[%clk 00:29:36]} {[%emt 00:00:45]} 60. h5 {[%clk
01:33:10]} {[%emt 00:00:16]} h6 {[%clk 00:29:49]} {[%emt 00:00:17]} 61. f3
{[%clk 01:33:34]} {[%emt 00:00:06]} Kc3 {[%clk 00:29:35]} {[%emt 00:00:44]} 62.
Kc1 {[%clk 01:33:52]} {[%emt 00:00:12]} Kd4 {[%clk 00:29:38]} {[%emt 00:00:27]}
63. Rxb3 {[%clk 01:34:10]} {[%emt 00:00:12]} Ke5 {[%clk 00:29:55]} {[%emt
00:00:13]} 64. Kd2 {[%clk 01:34:12]} {[%emt 00:00:28]} f5 {[%clk 00:30:06]}
{[%emt 00:00:18]} 65. Rb4 {[%clk 01:34:29]} {[%emt 00:00:14]} fxg4 {[%clk
00:30:25]} {[%emt 00:00:11]} 66. fxg4 {[%clk 01:34:48]} {[%emt 00:00:11]} Kf6
{[%clk 00:30:47]} {[%emt 00:00:09]} 67. Ke3 {[%clk 01:35:06]} {[%emt 00:00:11]}
Ke5 {[%clk 00:31:09]} {[%emt 00:00:08]} 68. Rb5+ {[%clk 01:35:26]} {[%emt
00:00:11]} Kf6 {[%clk 00:31:34]} {[%emt 00:00:04]} 69. Ke4 {[%clk 01:35:48]}
{[%emt 00:00:08]} Kg7 {[%clk 00:31:55]} {[%emt 00:00:09]} 70. Kf5 {[%clk
01:36:08]} {[%emt 00:00:11]} Kh7 {[%clk 00:32:16]} {[%emt 00:00:08]} 71. Rb7+
{[%clk 01:36:29]} {[%emt 00:00:09]} Kh8 {[%clk 00:32:39]} {[%emt 00:00:06]} 72.
Kg6 {[%clk 01:36:54]} {[%emt 00:00:06]} Kg8 {[%clk 00:33:03]} {[%emt 00:00:06]}
73. Rb8# {[%clk 01:37:21]} {[%emt 00:00:04]} 1-0

[Event "NJSK 2021 Meisjes A&B"]
[Site "Almelo, Netherlands"]
[Date "2021.08.07"]
[Round "7.7"]
[White "Honkoop, Stella"]
[Black "Duson, Stella"]
[Result "1-0"]
[TimeControl "90min/40moves + 30sec/move"]
[WhiteElo "1573"]
[BlackElo "1259"]

1. d4 {[%clk 01:30:58]} {[%emt 00:04:26]} d5 {[%clk 01:30:53]} 2. c4 {[%clk
01:30:53]} c6 {[%clk 01:31:13]} 3. Nc3 {[%clk 01:31:07]} dxc4 {[%clk 01:30:11]}
4. Bf4 {[%clk 01:29:59]} Bf5 {[%clk 01:28:26]} 5. e4 {[%clk 01:29:17]} Bg6
{[%clk 01:23:38]} {[%emt 00:00:51]} 6. Bxc4 {[%clk 01:28:45]} {[%emt 00:01:02]}
Nf6 {[%clk 01:21:38]} {[%emt 00:02:30]} 7. f3 {[%clk 01:24:57]} {[%emt
00:04:18]} e6 {[%clk 01:20:12]} {[%emt 00:01:56]} 8. Nge2 {[%clk 01:24:27]}
{[%emt 00:01:00]} a6 {[%clk 01:18:11]} {[%emt 00:02:31]} 9. a4 {[%clk
01:21:43]} {[%emt 00:03:14]} Bb4 {[%clk 01:16:02]} {[%emt 00:02:40]} 10. Qb3
{[%clk 01:18:54]} {[%emt 00:03:19]} a5 {[%clk 01:11:26]} {[%emt 00:05:06]} 11.
O-O {[%clk 01:17:16]} {[%emt 00:02:08]} Nbd7 {[%clk 01:06:19]} {[%emt
00:05:36]} 12. Na2 {[%clk 01:09:24]} {[%emt 00:08:22]} c5 {[%clk 01:00:57]}
{[%emt 00:05:52]} 13. Bb5 {[%clk 00:56:08]} {[%emt 00:13:46]} O-O {[%clk
00:55:30]} {[%emt 00:05:56]} 14. Bg5 {[%clk 00:44:44]} {[%emt 00:11:54]} Qc7
{[%clk 00:47:24]} {[%emt 00:08:36]} 15. Nxb4 {[%clk 00:43:22]} {[%emt
00:01:53]} cxb4 {[%clk 00:46:00]} {[%emt 00:01:54]} 16. Rac1 {[%clk 00:42:47]}
{[%emt 00:01:05]} Qb6 {[%clk 00:43:42]} {[%emt 00:02:48]} 17. e5 {[%clk
00:42:29]} {[%emt 00:00:48]} Nxe5 {[%clk 00:41:01]} {[%emt 00:03:12]} 18. Be3
{[%clk 00:29:22]} {[%emt 00:13:37]} Ned7 {[%clk 00:36:58]} {[%emt 00:04:32]} 19.
d5 {[%clk 00:28:24]} {[%emt 00:01:28]} Qd6 {[%clk 00:35:08]} {[%emt 00:02:18]}
20. dxe6 {[%clk 00:27:01]} {[%emt 00:01:55]} Qxe6 {[%clk 00:32:53]} {[%emt
00:02:44]} 21. Qxe6 {[%clk 00:26:53]} {[%emt 00:00:39]} fxe6 {[%clk 00:33:12]}
{[%emt 00:00:11]} 22. Bxd7 {[%clk 00:26:31]} {[%emt 00:00:52]} Nxd7 {[%emt
00:00:17]} 23. Rc7 {[%clk 00:26:43]} {[%emt 00:00:18]} Nf6 {[%clk 00:26:09]}
{[%emt 00:07:46]} 24. Rxb7 {[%clk 00:25:21]} {[%emt 00:01:52]} Rfd8 {[%clk
00:24:26]} {[%emt 00:02:12]} 25. Nd4 {[%clk 00:19:31]} {[%emt 00:06:21]} Ra6
{[%clk 00:22:12]} {[%emt 00:02:42]} 26. Rc1 {[%clk 00:18:02]} {[%emt 00:02:01]}
e5 {[%clk 00:14:27]} {[%emt 00:08:14]} 27. Nc6 {[%clk 00:16:48]} {[%emt
00:01:45]} Rd6 {[%clk 00:10:55]} {[%emt 00:04:02]} 28. Ne7+ {[%clk 00:15:22]}
{[%emt 00:01:57]} Kf7 {[%clk 00:09:43]} {[%emt 00:01:42]} 29. Rcc7 {[%clk
00:09:09]} {[%emt 00:06:42]} Ke6 {[%clk 00:09:11]} {[%emt 00:01:01]} 30. Nxg6
{[%clk 00:08:17]} {[%emt 00:01:22]} hxg6 {[%clk 00:09:20]} {[%emt 00:00:22]} 31.
Rxg7 {[%clk 00:08:20]} {[%emt 00:00:28]} Rac6 {[%clk 00:07:34]} {[%emt
00:02:14]} 32. Rge7+ {[%clk 00:06:09]} {[%emt 00:02:42]} Kd5 {[%clk 00:06:52]}
{[%emt 00:01:13]} 33. b3 {[%clk 00:03:43]} {[%emt 00:02:56]} Rc5 {[%clk
00:02:41]} {[%emt 00:04:40]} 34. Bxc5 {[%clk 00:03:34]} {[%emt 00:00:38]} Kxc5
{[%clk 00:03:01]} {[%emt 00:00:11]} 35. Rxe5+ {[%clk 00:03:31]} {[%emt
00:00:33]} Kc6 {[%clk 00:02:39]} {[%emt 00:00:52]} 36. Ra7 {[%clk 00:03:11]}
{[%emt 00:00:50]} Rd1+ {[%clk 00:02:23]} {[%emt 00:00:46]} 37. Kf2 {[%clk
00:03:29]} {[%emt 00:00:12]} Rd2+ {[%clk 00:02:30]} {[%emt 00:00:23]} 38. Ke1
{[%clk 00:02:58]} {[%emt 00:01:01]} Rxg2 {[%clk 00:02:35]} {[%emt 00:00:24]} 39.
Ra6+ {[%clk 00:03:24]} {[%emt 00:00:05]} Kd7 40. Rxf6 {[%clk 00:03:46]} Rxh2
{[%clk 00:02:48]} {[%emt 00:00:11]} 41. Rxa5 {[%clk 00:03:35]} {[%emt
00:00:42]} g5 {[%clk 00:02:32]} {[%emt 00:00:46]} 42. Ra7+ {[%clk 00:03:55]}
{[%emt 00:00:10]} Ke8 {[%clk 00:02:54]} {[%emt 00:00:07]} 43. Rb6 {[%clk
00:04:18]} {[%emt 00:00:07]} Rh1+ {[%clk 00:02:50]} {[%emt 00:00:34]} 44. Kf2
{[%clk 00:04:39]} {[%emt 00:00:09]} Rd1 {[%clk 00:03:15]} {[%emt 00:00:06]} 45.
Rh6 {[%clk 00:04:32]} {[%emt 00:00:36]} g4 {[%clk 00:03:21]} {[%emt 00:00:25]}
46. Rh8# {[%clk 00:04:20]} {[%emt 00:00:08]} 1-0